fUSD/lending_fUSD_20250113
["ID","MTS","AMOUNT","RATE_DAILY","PERIOD"]
[348841643,1736802644042,-500.0,9.969e-05,2]
[348841645,1736802644054,-500.0,9.969e-05,2]
[348841647,1736802644063,-500.0,9.969e-05,2]
[348841649,1736802644072,-500.0,9.969e-05,2]
[348841651,1736802644082,-500.0,9.969e-05,2]
[348841653,1736802644091,-1514.69,9.969e-05,2]
[348841655,1736802644100,-500.0,9.969e-05,2]
[348841657,1736802644109,-500.0,9.969e-05,2]
[348841659,1736802644118,-500.0,9.969e-05,2]
[348841661,1736802644127,-500.0,9.969e-05,2]
[348841663,1736802644137,-501.74102189,9.969e-05,2]
[348841665,1736802644146,-500.0,9.969e-05,2]
[348841667,1736802644156,-632.7651141,9.969e-05,2]
[348841669,1736802644165,-500.0,9.969e-05,2]
[348841671,1736802644174,-500.0,9.969e-05,2]
[348841672,1736802644184,-500.0,9.969e-05,2]
[348841674,1736802644195,-500.0,9.969e-05,2]
[348841676,1736802644204,-500.0,9.969e-05,2]
[348841678,1736802644213,-500.0,9.969e-05,2]
[348841680,1736802644222,-500.0,9.969e-05,2]
[348841682,1736802644231,-500.0,9.969e-05,2]
[348841684,1736802644241,-500.0,9.969e-05,2]
[348841686,1736802644250,-500.0,9.969e-05,2]
[348841688,1736802644259,-500.0,9.969e-05,2]
[348841690,1736802644268,-501.06509126,9.969e-05,2]
[348841692,1736802644277,-500.0,9.969e-05,2]
[348841694,1736802644285,-500.0,9.969e-05,2]
[348841695,1736802644297,-1000.06,9.969e-05,2]
[348841697,1736802644306,-500.0,9.969e-05,2]
[348841699,1736802644314,-500.0,9.969e-05,2]
[348841701,1736802644324,-500.42555165,9.969e-05,2]
[348841703,1736802644333,-500.0,9.969e-05,2]
[348841705,1736802644343,-500.0,9.969e-05,2]
[348841707,1736802644352,-500.0,9.969e-05,2]
[348841709,1736802644363,-500.0,9.969e-05,2]
[348841711,1736802644374,-500.98264899,9.969e-05,2]
[348841713,1736802644382,-500.63900663,9.969e-05,2]
[348841715,1736802644391,-501.2495036,9.969e-05,2]
[348841717,1736802644400,-500.0,9.969e-05,2]
[348841719,1736802644410,-500.0,9.969e-05,2]
[348841721,1736802644419,-500.0,9.969e-05,2]
[348841723,1736802644428,-500.88331731,9.969e-05,2]
[348841724,1736802644438,-500.0,9.969e-05,2]
[348841726,1736802644450,-500.0,9.969e-05,2]
[348841728,1736802644459,-500.0,9.969e-05,2]
[348841730,1736802644469,-500.0,9.969e-05,2]
[348841732,1736802644478,-500.73469352,9.969e-05,2]
[348841734,1736802644487,-500.0,9.969e-05,2]
[348841736,1736802644497,-500.0,9.969e-05,2]
[348841738,1736802644506,-2259.4,9.969e-05,2]
[348841740,1736802644516,-500.73353468,9.969e-05,2]
[348841742,1736802644525,-500.0,9.969e-05,2]
[348841744,1736802644534,-500.0,9.969e-05,2]
[348841746,1736802644543,-500.0,9.969e-05,2]
[348841748,1736802644555,-502.52686511,9.969e-05,2]
[348841750,1736802644564,-500.0,9.969e-05,2]
[348841752,1736802644573,-527.79,9.969e-05,2]
[348841754,1736802644583,-1093.61,9.969e-05,2]
[348841756,1736802644592,-500.0,9.969e-05,2]
[348841758,1736802644601,-500.0,9.969e-05,2]
[348841760,1736802644610,-500.0,9.969e-05,2]
[348841761,1736802644619,-2545.57,9.969e-05,2]
[348841763,1736802644628,-500.0,9.969e-05,2]
[348841765,1736802644637,-500.0,9.969e-05,2]
[348841767,1736802644647,-500.0,9.969e-05,2]
[348841768,1736802644655,-500.0,9.969e-05,2]
[348841769,1736802644664,-500.0,9.969e-05,2]
[348841770,1736802644674,-500.0,9.969e-05,2]
[348841771,1736802644683,-2588.71,9.969e-05,2]
[348841772,1736802644692,-500.0,9.969e-05,2]
[348841773,1736802644702,-500.0,9.969e-05,2]
[348841774,1736802644711,-500.0,9.969e-05,2]
[348841775,1736802644721,-500.0,9.969e-05,2]
[348841776,1736802644730,-500.0,9.969e-05,2]
[348841777,1736802644739,-500.0,9.969e-05,2]
[348841779,1736802644748,-600.71,9.969e-05,2]
[348841781,1736802644757,-500.0,9.969e-05,2]
[348841783,1736802644767,-500.0,9.969e-05,2]
[348841785,1736802644776,-500.0,9.969e-05,2]
[348841787,1736802644786,-500.0,9.969e-05,2]
[348841789,1736802644795,-500.0,9.969e-05,2]
[348841791,1736802644805,-500.0,9.969e-05,2]
[348841793,1736802644815,-500.0,9.969e-05,2]
[348841795,1736802644824,-500.0,9.969e-05,2]
[348841797,1736802644833,-500.0,9.969e-05,2]
[348841798,1736802644842,-500.0,9.969e-05,2]
[348841800,1736802644852,-500.0,9.969e-05,2]
[348841803,1736802644866,-500.0,9.969e-05,2]
[348841805,1736802644875,-500.0,9.969e-05,2]
[348841807,1736802644885,-500.0,9.969e-05,2]
[348841808,1736802644894,-500.0,9.969e-05,2]
[348841810,1736802644903,-500.0,9.969e-05,2]
[348841812,1736802644912,-500.0,9.969e-05,2]
[348841814,1736802644922,-500.0,9.969e-05,2]
[348841816,1736802644931,-723.93,9.969e-05,2]
[348841818,1736802644940,-500.0,9.969e-05,2]
[348841820,1736802644949,-500.0,9.969e-05,2]
[348841822,1736802644958,-500.0,9.969e-05,2]
[348841824,1736802644967,-500.0,9.969e-05,2]
[348841826,1736802644976,-500.0,9.969e-05,2]
[348841828,1736802644986,-302.44632373,9.969e-05,2]
[348841830,1736802644996,-500.0,9.969e-05,2]
[348841832,1736802645006,-500.0,9.969e-05,2]
[348841834,1736802645015,-500.0,9.969e-05,2]
[348841836,1736802645024,-500.0,9.969e-05,2]
[348841838,1736802645033,-621.12316191,9.969e-05,2]
[348841840,1736802645043,-1626.22,9.969e-05,2]
[348841842,1736802645053,-500.0,9.969e-05,2]
[348841844,1736802645062,-500.0,9.969e-05,2]
[348841846,1736802645071,-500.0,9.969e-05,2]
[348841848,1736802645081,-500.0,9.969e-05,2]
[348841850,1736802645090,-500.0,9.969e-05,2]
[348841852,1736802645098,-501.67156521,9.969e-05,2]
[348841853,1736802645108,-500.0,9.969e-05,2]
[348841856,1736802645117,-500.0,9.969e-05,2]
[348841858,1736802645127,-500.0,9.969e-05,2]
[348841860,1736802645136,-500.0,9.969e-05,2]
[348841862,1736802645145,-500.0,9.969e-05,2]
[348841864,1736802645154,-500.0,9.969e-05,2]
[348841865,1736802645163,-500.0,9.969e-05,2]
[348841867,1736802645172,-500.0,9.969e-05,2]
[348841869,1736802645181,-500.0,9.969e-05,2]
[348841871,1736802645190,-500.0,9.969e-05,2]
[348841873,1736802645200,-500.0,9.969e-05,2]
[348841875,1736802645209,-500.0,9.969e-05,2]
[348841877,1736802645219,-4179.29,9.969e-05,2]
[348841879,1736802645228,-500.0,9.969e-05,2]
[348841881,1736802645237,-500.0,9.969e-05,2]
[348841883,1736802645246,-500.0,9.969e-05,2]
[348841885,1736802645255,-885.27,9.969e-05,2]
[348841887,1736802645264,-500.0,9.969e-05,2]
[348841889,1736802645273,-927.08,9.969e-05,2]
[348841891,1736802645283,-500.0,9.969e-05,2]
[348841893,1736802645292,-500.0,9.969e-05,2]
[348841895,1736802645305,-500.0,9.969e-05,2]
[348841897,1736802645314,-500.0,9.969e-05,2]
[348841900,1736802645323,-500.0,9.969e-05,2]
[348841902,1736802645334,-500.0,9.969e-05,2]
[348841903,1736802645343,-500.0,9.969e-05,2]
[348841906,1736802645352,-500.0,9.969e-05,2]
[348841908,1736802645365,-500.0,9.969e-05,2]
[348841911,1736802645374,-500.0,9.969e-05,2]
[348841914,1736802645384,-500.0,9.969e-05,2]
[348841917,1736802645393,-500.0,9.969e-05,2]
[348841920,1736802645403,-879.0,9.969e-05,2]
[348841921,1736802645412,-500.0,9.969e-05,2]
[348841924,1736802645421,-500.0,9.969e-05,2]
[348841926,1736802645431,-500.0,9.969e-05,2]
[348841928,1736802645443,-500.0,9.969e-05,2]
[348841930,1736802645453,-500.0,9.969e-05,2]
[348841932,1736802645462,-500.0,9.969e-05,2]
[348841934,1736802645472,-500.0,9.969e-05,2]
[348841936,1736802645481,-500.0,9.969e-05,2]
[348841939,1736802645490,-500.0,9.969e-05,2]
[348841941,1736802645499,-500.0,9.969e-05,2]
[348841943,1736802645508,-500.0,9.969e-05,2]
[348841945,1736802645517,-500.0,9.969e-05,2]
[348841947,1736802645527,-500.0,9.969e-05,2]
[348841949,1736802645537,-500.0,9.969e-05,2]
[348841951,1736802645548,-500.0,9.969e-05,2]
[348841954,1736802645557,-500.0,9.969e-05,2]
[348841956,1736802645567,-500.0,9.969e-05,2]
[348841957,1736802645576,-507.71515599,9.969e-05,2]
[348841959,1736802645586,-500.0,9.969e-05,2]
[348841970,1736802645750,-500.0,9.969e-05,2]
[348841972,1736802645760,-500.0,9.969e-05,2]
[348841973,1736802645769,-500.0,9.969e-05,2]
[348841975,1736802645779,-500.0,9.969e-05,2]
[348841977,1736802645788,-500.0,9.969e-05,2]
[348841979,1736802645799,-500.0,9.969e-05,2]
[348841981,1736802645808,-500.0,9.969e-05,2]
[348841984,1736802645818,-500.0,9.969e-05,2]
[348841986,1736802645828,-500.0,9.969e-05,2]
[348841988,1736802645838,-500.0,9.969e-05,2]
[348841990,1736802645847,-500.0,9.969e-05,2]
[348841991,1736802645856,-500.0,9.969e-05,2]
[348841994,1736802645868,-500.0,9.969e-05,2]
[348841996,1736802645878,-500.0,9.969e-05,2]
[348841998,1736802645887,-500.0,9.969e-05,2]
[348841999,1736802645897,-500.0,9.969e-05,2]
[348842001,1736802645906,-500.0,9.969e-05,2]
[348842003,1736802645915,-508.97323927,9.969e-05,2]
[348842005,1736802645924,-153.64754505,9.969e-05,2]
[348842007,1736802645933,-500.0,9.969e-05,2]
[348842009,1736802645943,-501.27886825,9.969e-05,2]
[348842012,1736802645952,-5039.84902446,9.969e-05,2]
[348842013,1736802645962,-500.0,9.969e-05,2]
[348842015,1736802645971,-500.0,9.969e-05,2]
[348842017,1736802645980,-603.86,9.969e-05,2]
[348842020,1736802645991,-500.0,9.969e-05,2]
[348842022,1736802646000,-500.0,9.969e-05,2]
[348842023,1736802646009,-500.0,9.969e-05,2]
[348842026,1736802646019,-500.0,9.969e-05,2]
[348842027,1736802646028,-500.0,9.969e-05,2]
[348842030,1736802646038,-502.51226098,9.969e-05,2]
[348842031,1736802646047,-500.51980344,9.969e-05,2]
[348842034,1736802646057,-485.00115741,9.969e-05,2]
[348842035,1736802646068,-504.12822013,9.969e-05,2]
[348842037,1736802646077,-500.0,9.969e-05,2]
[348842039,1736802646086,-500.0,9.969e-05,2]
[348842041,1736802646095,-1272.63,9.969e-05,2]
[348842043,1736802646105,-500.60805406,9.969e-05,2]
[348842045,1736802646114,-999.31,9.969e-05,2]
[348842047,1736802646123,-500.0,9.969e-05,2]
[348842049,1736802646132,-500.0,9.969e-05,2]
[348842051,1736802646142,-500.0,9.969e-05,2]
[348842053,1736802646151,-2800.15,9.969e-05,2]
[348842055,1736802646160,-500.0,9.969e-05,2]
[348842057,1736802646170,-500.0,9.969e-05,2]
[348842059,1736802646179,-500.0,9.969e-05,2]
[348842062,1736802646188,-500.0,9.969e-05,2]
[348842065,1736802646197,-500.0,9.969e-05,2]
[348842066,1736802646206,-607.83,9.969e-05,2]
[348842068,1736802646215,-500.0,9.969e-05,2]
[348842071,1736802646224,-500.0,9.969e-05,2]
[348842072,1736802646233,-500.0,9.969e-05,2]
[348842075,1736802646243,-2521.22,9.969e-05,2]
[348842076,1736802646252,-509.40205177,9.969e-05,2]
[348842079,1736802646263,-500.0,9.969e-05,2]
[348842080,1736802646273,-584.46016699,9.969e-05,2]
[348842082,1736802646283,-500.0,9.969e-05,2]
[348842083,1736802646292,-500.0,9.969e-05,2]
[348842085,1736802646302,-500.0,9.969e-05,2]
[348842086,1736802646312,-1587.66,9.969e-05,2]
[348842088,1736802646322,-500.0,9.969e-05,2]
[348842089,1736802646332,-500.0,9.969e-05,2]
[348842091,1736802646342,-545.57,9.969e-05,2]
[348842092,1736802646351,-500.0,9.969e-05,2]
[348842094,1736802646361,-500.0,9.969e-05,2]
[348842095,1736802646374,-616.61,9.969e-05,2]
[348842097,1736802646383,-1640.68,9.969e-05,2]
[348842098,1736802646392,-1733.45,9.969e-05,2]
[348842100,1736802646401,-3956.1,9.97e-05,2]
[348842101,1736802646411,-1808.25,9.97e-05,2]
[348842102,1736802646420,-2662.57,9.97e-05,2]
[348842104,1736802646429,-1356.98,9.97e-05,2]
[348842106,1736802646439,-1533.54,9.97e-05,2]
[348842107,1736802646450,-500.0,9.97e-05,2]
[348842109,1736802646460,-946.65,9.97e-05,2]
[348842110,1736802646469,-1704.48,9.97e-05,2]
[348842112,1736802646480,-841.76,9.97e-05,2]
[348842113,1736802646488,-949.13,9.97e-05,2]
[348842115,1736802646497,-794.47,9.97e-05,2]
[348842117,1736802646507,-500.0,9.97e-05,2]
[348842118,1736802646517,-1073.18,9.97e-05,2]
[348842120,1736802646526,-756.53,9.97e-05,2]
[348842121,1736802646536,-3790.76,9.97e-05,2]
[348842123,1736802646545,-1817.28,9.97e-05,2]
[348842124,1736802646557,-1545.35,9.97e-05,2]
[348842126,1736802646566,-2210.3,9.97e-05,2]
[348842127,1736802646576,-1500.27,9.97e-05,2]
[348842129,1736802646585,-1659.26,9.97e-05,2]
[348842131,1736802646594,-2006.94,9.97e-05,2]
[348842132,1736802646604,-500.0,9.97e-05,2]
[348842134,1736802646613,-500.0,9.97e-05,2]
[348842135,1736802646622,-10233.02,9.97e-05,2]
[348842137,1736802646631,-500.0,9.97e-05,2]
[348842138,1736802646641,-771.63,9.97e-05,2]
[348842140,1736802646651,-1000.0,9.97e-05,2]
[348842142,1736802646660,-942.84,9.97e-05,2]
[348842143,1736802646669,-500.0,9.97e-05,2]
[348842145,1736802646678,-2602.27,9.97e-05,2]
[348842146,1736802646687,-1010.4,9.97e-05,2]
[348842148,1736802646697,-2185.96,9.97e-05,2]
[348842149,1736802646706,-1498.84,9.97e-05,2]
[348842151,1736802646716,-500.0,9.97e-05,2]
[348842153,1736802646725,-1414.33,9.97e-05,2]
[348842154,1736802646735,-500.0,9.978e-05,2]
[348842156,1736802646744,-200.0,9.983e-05,2]
[348842157,1736802646753,-500.0,9.987e-05,2]
[348842159,1736802646762,-3860.7474493,9.992e-05,2]
[348842160,1736802646771,-1510.7022121,9.992e-05,2]
[348842162,1736802646780,-9547.577808,9.992e-05,2]
[348842163,1736802646789,-22978.9170695,9.992e-05,2]
[348842165,1736802646798,-3228.1847901,9.993e-05,2]
[348842166,1736802646808,-1263.8148007,9.993e-05,2]
[348842168,1736802646817,-7987.2592015,9.993e-05,2]
[348842170,1736802646826,-19223.5738209,9.993e-05,2]
[348842171,1736802646836,-599.37054097,9.994e-05,2]
[348842173,1736802646846,-500.0,9.999e-05,2]
[348842174,1736802646855,-358.57218891,9.999e-05,2]
[348842176,1736802646864,-200.0,9.999e-05,2]
[348842177,1736802646873,-120374.83282893,0.0001,2]
[348842193,1736802647173,-7270.766872,0.0001,2]
[348842200,1736802647231,-8991.38465614,0.0001,2]
[348842202,1736802647244,-1184.75,0.0001,2]
[348842205,1736802647255,-9152.2394294,0.0001,2]
[348842207,1736802647266,-963.81285001,0.0001,2]
[348842209,1736802647277,-18403.79999999,0.0001,2]
[348842211,1736802647288,-344.1324579,0.0001,2]
[348842213,1736802647300,-14935.85199795,0.0001,2]
[348842215,1736802647312,-100395.18009481,0.0001,2]
[348842219,1736802647338,-1690.67632542,9.969e-05,2]
[348842221,1736802647350,-93.15367458,9.969e-05,2]
[348842224,1736802647360,-718.74631042,0.0001,2]
[348842226,1736802647375,-92036.80000005,0.0001,2]
[348842228,1736802647387,-296.664,0.0001,2]
[348842230,1736802647398,-100197.9916,0.0001,2]
[348842233,1736802647416,-484.51738869,0.0001,2]
[348842235,1736802647427,-4816.8,0.0001,2]
[348842237,1736802647438,-610.22697178,0.0001,2]
[348842240,1736802647450,-2963432.25016083,0.0001,2]
[348842242,1736802647463,-582.27999921,0.0001,2]
[348842244,1736802647474,-633.004498,0.0001,2]
[348842267,1736802647680,-500.0,9.966e-05,2]
[348842269,1736802647689,-500.0,9.97e-05,2]
[348842271,1736802647698,-13596.45665,0.0001,2]
[348842273,1736802647709,-33404.57034803,0.0001,2]
[348842275,1736802647720,-51845.5884507,0.0001,2]
[348842277,1736802647731,-13032.19454329,0.0001,2]
[348842279,1736802647742,-6639.68008007,0.0001,2]
[348842281,1736802647753,-2753.06750605,0.0001,2]
[348842284,1736802647769,-12016.54127314,0.0001,2]
[348842286,1736802647780,-1606.229472,0.0001,2]
[348842288,1736802647791,-3151.84771964,0.0001,2]
[348842291,1736802647803,-2884.84977065,0.0001,2]
[348842293,1736802647814,-1689.32837357,0.0001,2]
[348842295,1736802647825,-421.43719397,0.0001,2]
[348842297,1736802647835,-7618.07795771,0.0001,2]
[348842300,1736802647853,-6313.54565214,0.0001,2]
[348842302,1736802647868,-396.21852322,0.0001,2]
[348842304,1736802647878,-538.32008026,0.0001,2]
[348842312,1736802647936,-299409.93705102,0.0001,2]
[348842314,1736802647948,-951.0,0.0001,2]
[348842316,1736802647959,-7887.0668544,0.0001,2]
[348842318,1736802647970,-160958.04567832,0.0001,2]
[348842320,1736802647981,-864.60574511,0.0001,2]
[348842322,1736802647992,-364.96708586,0.0001,2]
[348842325,1736802648002,-686.24633394,0.0001,2]
[348842327,1736802648013,-84137.68247832,0.0001,2]
[348842329,1736802648025,-360.626445,0.0001,2]
[348842331,1736802648036,-4874.97850054,0.0001,2]
[348842333,1736802648048,-980.44946021,0.0001,2]
[348842335,1736802648059,-16550.01267482,0.0001,2]
[348842337,1736802648071,-5829.85985594,0.0001,2]
[348842340,1736802648088,-9258.0,0.0001,2]
[348842342,1736802648099,-8450.17863377,0.0001,2]
[348842344,1736802648111,-7493.71479126,0.0001,2]
[348842366,1736802648320,-285.9099,9.793e-05,2]
[348842368,1736802648330,-500.0,9.967e-05,2]
[348842370,1736802648339,-135.94012,9.967e-05,2]
[348842372,1736802648351,-371.72000317,9.967e-05,2]
[348842374,1736802648361,-500.0,9.967e-05,2]
[348842376,1736802648375,-299882.01858256,0.0001,2]
[348842378,1736802648386,-375.0,0.0001,2]
[348842380,1736802648398,-2409.2048064,0.0001,2]
[348842383,1736802648410,-10810.32918365,0.0001,2]
[348842385,1736802648422,-9210.52416909,0.0001,2]
[348842387,1736802648434,-525.24997195,0.0001,2]
[348842389,1736802648447,-4004.9294083,0.0001,2]
[348842391,1736802648458,-6766.8835218,0.0001,2]
[348842394,1736802648470,-896.32747672,0.0001,2]
[348842396,1736802648482,-22491.7547035,0.0001,2]
[348842398,1736802648496,-1163.41768572,0.0001,2]
[348842400,1736802648507,-1117.2837586,0.0001,2]
[348842402,1736802648518,-1065.55894033,0.0001,2]
[348842404,1736802648529,-1098.0000002,0.0001,2]
[348842407,1736802648540,-257.04,0.0001,2]
[348842409,1736802648552,-931.13278959,0.0001,2]
[348842411,1736802648563,-401.0,0.0001,2]
[348842414,1736802648589,-500.0,9.966e-05,2]
[348842416,1736802648599,-441.0329676,0.0001,2]
[348842419,1736802648611,-24214.01897577,0.0001,2]
[348842421,1736802648623,-779513.26871352,0.0001,2]
[348842476,1736802649153,-500.0,9.967e-05,2]
[348842478,1736802649162,-260.238502,9.967e-05,2]
[348842480,1736802649171,-500.0,9.968e-05,2]
[348842481,1736802649181,-90739.76149802,0.0001,2]
[348842482,1736802649192,-281771.84030652,0.0001,2]
[348842483,1736802649203,-18427.80704066,0.0001,2]
[348842484,1736802649222,-500.0,9.967e-05,2]
[348842485,1736802649232,-1713.15629143,0.0001,2]
[348842486,1736802649244,-15259.26984555,0.0001,2]
[348842487,1736802649256,-1085.5,0.0001,2]
[348842488,1736802649268,-1913.775132,0.0001,2]
[348842489,1736802649279,-1740.3,0.0001,2]
[348842490,1736802649290,-7404.41532893,0.0001,2]
[348842492,1736802649304,-2153.718366,0.0001,2]
[348842495,1736802649315,-22787.37970422,0.0001,2]
[348842497,1736802649327,-99255.42383006,0.0001,2]
[348842499,1736802649338,-451.11234823,0.0001,2]
[348842501,1736802649350,-27113.78270218,0.0001,2]
[348842503,1736802649361,-515.81904472,0.0001,2]
[348842506,1736802649377,-18607.11136262,0.0001,2]
[348842508,1736802649389,-358.979945,0.0001,2]
[348842510,1736802649400,-441.64,0.0001,2]
[348842512,1736802649412,-1551.5218482,0.0001,2]
[348842514,1736802649424,-15535.929212,0.0001,2]
[348842517,1736802649435,-5038.15861977,0.0001,2]
[348842519,1736802649447,-483.34664971,0.0001,2]
[348844017,1736802744434,938.34,8.219e-05,2]
[348844018,1736802755417,176.49620197,0.0002,30]
[348844020,1736803129303,50000.0,0.0002,30]
[348844021,1736803203145,1000.0,0.00019,30]
[348844030,1736803586515,891.42,8.219e-05,2]
[348844056,1736803783649,1251.0,0.00021,32]
[348844078,1736803831843,-200.0,8.807e-05,2]
[348844079,1736803831853,-160.38,8.807e-05,2]
[348844080,1736803831863,-1000.0,8.956e-05,2]
[348844081,1736803831872,-18539.58,8.965e-05,2]
[348844082,1736803831881,-435.11,8.97e-05,2]
[348844083,1736803831890,-250.0,8.987e-05,2]
[348844084,1736803831900,-200.0,9.4e-05,3]
[348844085,1736803831909,-772.26,9.4e-05,2]
[348844086,1736803831918,-772.26,9.4e-05,2]
[348844087,1736803831927,-1540.17,9.4e-05,2]
[348844088,1736803831936,-240.017,9.5e-05,2]
[348844089,1736803831945,-500.0,9.5e-05,3]
[348844090,1736803831954,-772.26,9.5e-05,2]
[348844091,1736803831964,-436.72,9.5e-05,2]
[348844092,1736803831973,-42504.71769639,9.51e-05,2]
[348844093,1736803831984,-3079.04027306,9.51e-05,2]
[348844094,1736803831996,-8933.71380024,9.51e-05,2]
[348844095,1736803832118,-810.97479043,9.51e-05,2]
[348844096,1736803832129,-4237.39069681,9.51e-05,2]
[348844097,1736803832141,-599.36604234,9.51e-05,2]
[348844098,1736803832152,-357.355385,9.51e-05,2]
[348844099,1736803832177,-809.55910396,9.51e-05,2]
[348844100,1736803832214,-623.1,9.51e-05,2]
[348844101,1736803832230,-525.00000005,9.51e-05,2]
[348844102,1736803832241,-556.26670477,9.51e-05,2]
[348844104,1736803832280,-1000.7,9.51e-05,2]
[348844106,1736803832291,-429.87641914,9.51e-05,2]
[348844137,1736803837677,-624.17482031,9.51e-05,2]
[348844140,1736803837848,-1956.22079084,9.51e-05,2]
[348844141,1736803837963,-7002.54347666,9.51e-05,2]
[348844142,1736803837973,-772.26,9.51e-05,2]
[348844143,1736803837982,-437.97,9.51e-05,2]
[348844144,1736803837992,-3169.6553,9.57e-05,2]
[348844145,1736803838001,-772.26,9.58e-05,2]
[348844146,1736803838010,-437.97,9.58e-05,2]
[348844147,1736803838019,-700.0,9.6e-05,3]
[348844148,1736803838028,-437.97,9.68e-05,2]
[348844149,1736803838037,-437.97,9.68e-05,2]
[348844150,1736803838046,-1000.0,9.7e-05,3]
[348844151,1736803838055,-858.7997,9.8e-05,2]
[348844152,1736803838065,-1200.0,9.8e-05,3]
[348844153,1736803838073,-6231.6505,9.866e-05,2]
[348844155,1736803838083,-500.0,9.898e-05,2]
[348844156,1736803838092,-500.0,9.898e-05,2]
[348844157,1736803838101,-500.0,9.898e-05,2]
[348844158,1736803838110,-500.0,9.898e-05,2]
[348844159,1736803838118,-500.0,9.898e-05,2]
[348844160,1736803838127,-825.98,9.898e-05,2]
[348844161,1736803838136,-500.0,9.898e-05,2]
[348844162,1736803838145,-500.0,9.898e-05,2]
[348844163,1736803838154,-500.0,9.898e-05,2]
[348844164,1736803838163,-500.0,9.898e-05,2]
[348844165,1736803838172,-500.0,9.898e-05,2]
[348844166,1736803838181,-500.0,9.898e-05,2]
[348844167,1736803838189,-500.0,9.898e-05,2]
[348844168,1736803838198,-500.0,9.898e-05,2]
[348844169,1736803838207,-500.0,9.898e-05,2]
[348844170,1736803838216,-500.0,9.898e-05,2]
[348844171,1736803838229,-500.0,9.898e-05,2]
[348844173,1736803838238,-500.0,9.898e-05,2]
[348844174,1736803838247,-500.0,9.898e-05,2]
[348844175,1736803838256,-500.0,9.898e-05,2]
[348844176,1736803838265,-500.0,9.898e-05,2]
[348844177,1736803838273,-500.0,9.898e-05,2]
[348844178,1736803838283,-500.0,9.898e-05,2]
[348844179,1736803838292,-888.26,9.899e-05,2]
[348844180,1736803838301,-874.64,9.899e-05,2]
[348844181,1736803838311,-500.0,9.899e-05,2]
[348844183,1736803838320,-500.0,9.899e-05,2]
[348844186,1736803838329,-505.24,9.899e-05,2]
[348844188,1736803838338,-1619.99,9.899e-05,2]
[348844190,1736803838348,-500.0,9.899e-05,2]
[348844192,1736803838357,-716.77,9.899e-05,2]
[348844193,1736803838366,-500.0,9.899e-05,2]
[348844194,1736803838375,-614.8,9.899e-05,2]
[348844195,1736803838384,-647.55,9.899e-05,2]
[348844196,1736803838393,-500.0,9.899e-05,2]
[348844197,1736803838402,-500.0,9.899e-05,2]
[348844198,1736803838411,-500.0,9.899e-05,2]
[348844199,1736803838420,-500.0,9.899e-05,2]
[348844200,1736803838429,-500.0,9.899e-05,2]
[348844202,1736803838439,-777.44,9.899e-05,2]
[348844203,1736803838448,-500.0,9.899e-05,2]
[348844205,1736803838458,-500.0,9.899e-05,2]
[348844206,1736803838467,-500.0,9.899e-05,2]
[348844207,1736803838476,-500.0,9.899e-05,2]
[348844208,1736803838485,-455.8480764,9.899e-05,2]
[348844209,1736803838494,-500.0,9.899e-05,2]
[348844210,1736803838504,-500.0,9.899e-05,2]
[348844211,1736803838515,-500.0,9.899e-05,2]
[348844212,1736803838526,-500.0,9.899e-05,2]
[348844213,1736803838537,-500.0,9.899e-05,2]
[348844214,1736803838547,-728.04,9.899e-05,2]
[348844215,1736803838557,-500.0,9.899e-05,2]
[348844216,1736803838567,-500.0,9.899e-05,2]
[348844217,1736803838577,-500.0,9.899e-05,2]
[348844218,1736803838586,-500.0,9.899e-05,2]
[348844219,1736803838597,-500.0,9.899e-05,2]
[348844220,1736803838606,-500.0,9.899e-05,2]
[348844221,1736803838615,-618.94,9.899e-05,2]
[348844222,1736803838625,-691.04,9.899e-05,2]
[348844223,1736803838634,-500.0,9.899e-05,2]
[348844224,1736803838644,-500.0,9.899e-05,2]
[348844225,1736803838656,-650.08,9.899e-05,2]